bitfinex-derivatives/quotes_BTCF0:USTF0_20250424
["timestamp","ask_amount","ask_price","bid_price","bid_amount"]
[1745513808157,0.1089058,93501.0,93500.0,0.5311069]
[1745513809049,0.06427225,93536.0,93500.0,0.631152]
[1745513809353,0.0011,93537.0,93530.0,0.3608]
[1745513809553,0.0534204,93558.0,93531.0,0.1487]
[1745513809743,0.1068475,93552.0,93551.0,0.3608]
[1745513809943,0.0534214,93556.0,93551.0,0.3908]
[1745513810144,0.1068463,93553.0,93552.0,0.0991]
[1745513810356,0.1068463,93553.0,93552.0,0.1787]
[1745513811249,0.1068463,93553.0,93552.0,0.3507]
[1745513811449,0.1098463,93553.0,93552.0,0.3507]
[1745513812350,0.1606463,93553.0,93552.0,0.3507]
[1745513812550,0.1636463,93553.0,93552.0,0.3507]
[1745513813260,0.1636463,93553.0,93552.0,0.2811]
[1745513813664,0.1636463,93553.0,93552.0,0.2711]
[1745513813962,0.1636463,93553.0,93552.0,0.2337]
[1745513814552,0.1636463,93553.0,93552.0,0.2237]
[1745513815855,0.1636463,93553.0,93552.0,0.172]
[1745513816257,0.1068566,93544.0,93543.0,0.0472]
[1745513816453,0.1068566,93544.0,93543.0,0.0872]
[1745513817048,0.1565566,93544.0,93543.0,0.1345]
[1745513817247,0.1565566,93544.0,93543.0,0.3065]
[1745513817655,0.1575566,93544.0,93543.0,0.3065]
[1745513817948,0.1585566,93544.0,93543.0,0.3065]
[1745513827652,0.1585566,93544.0,93543.0,0.172]
[1745513829163,0.1585566,93544.0,93543.0,0.2239]
[1745513829666,0.1585566,93544.0,93543.0,0.2339]
[1745513832757,0.1585566,93544.0,93543.0,0.172]
[1745513834169,0.1585566,93544.0,93543.0,0.182]
[1745513835968,0.0517,93544.0,93543.0,0.3288578]
[1745513836470,0.1585566,93544.0,93543.0,0.222]
[1745513836865,0.1585566,93544.0,93543.0,0.3198]
[1745513838166,0.1585566,93544.0,93543.0,0.2717]
[1745513847272,0.1585566,93544.0,93543.0,0.26167645]
[1745513855471,0.3305566,93544.0,93543.0,0.0997]
[1745513860675,0.3305566,93544.0,93543.0,0.05]
[1745513865491,0.174,93544.0,93543.0,0.1568578]
[1745513865676,0.174,93544.0,93543.0,0.2668578]
[1745513865987,0.0534214,93556.0,93553.0,0.1068463]
[1745513866189,0.1068443,93555.0,93554.0,0.0958]
[1745513866484,0.2015443,93555.0,93554.0,0.1854]
[1745513867187,0.3735443,93555.0,93554.0,0.1854]
[1745513868680,0.3775443,93555.0,93554.0,0.1854]
[1745513869386,0.3805443,93555.0,93554.0,0.1854]
[1745513870790,0.3805443,93555.0,93554.0,0.1358]
[1745513872687,0.44918801,93555.0,93531.0,0.4149]
[1745513872888,0.0534349,93533.0,93531.0,0.02]
[1745513873077,0.1068795,93524.0,93523.0,0.0984]
[1745513873283,0.1068795,93524.0,93523.0,0.2684]
[1745513873878,0.2041795,93524.0,93523.0,0.2684]
[1745513874881,0.2041795,93524.0,93523.0,0.2724]
[1745513875075,0.3761795,93524.0,93523.0,0.2724]
[1745513876095,0.3761795,93524.0,93523.0,0.2754]
[1745513877879,0.3761795,93524.0,93523.0,0.3822806]
[1745513878495,0.3761795,93524.0,93523.0,0.2754]
[1745513891291,0.2788795,93524.0,93523.0,0.3822806]
[1745513891496,0.172,93524.0,93523.0,0.3822806]
[1745513891888,0.06856,93530.0,93528.0,0.0534369]
[1745513892089,0.06856,93530.0,93529.0,0.2006738]
[1745513892289,0.06856,93530.0,93529.0,0.3606738]
[1745513892992,0.06856,93530.0,93529.0,0.37148121]
[1745513893391,0.1754326,93530.0,93529.0,0.37148121]
[1745513893996,0.06856,93530.0,93529.0,0.37148121]
[1745513894194,0.1754326,93530.0,93529.0,0.3606738]
[1745513894499,0.1754326,93530.0,93529.0,0.3626738]
[1745513895399,0.1754326,93530.0,93529.0,0.3646738]
[1745513895792,0.2240326,93530.0,93529.0,0.3646738]
[1745513897395,0.2240326,93530.0,93529.0,0.2125]
[1745513897597,0.2240326,93530.0,93529.0,0.3193738]
[1745513897897,0.2240326,93530.0,93529.0,0.2125]
[1745513900199,0.3960326,93530.0,93529.0,0.2125]
[1745513900699,0.3960326,93530.0,93529.0,0.164]
[1745513915712,0.3960326,93530.0,93529.0,0.004]
[1745513918702,0.4431326,93530.0,93529.0,0.004]
[1745513924910,0.4431326,93530.0,93529.0,0.014]
[1745513927508,0.4431326,93530.0,93529.0,0.004]
[1745513932014,0.1068829,93521.0,93520.0,0.096]
[1745513933223,0.3726829,93521.0,93520.0,0.101]
[1745513933721,0.3726829,93521.0,93520.0,0.104]
[1745513934024,0.1068886,93516.0,93515.0,0.16322893]
[1745513934220,0.1754086,93516.0,93515.0,0.16322893]
[1745513934524,0.1068932,93512.0,93511.0,0.0914]
[1745513934719,0.1068932,93512.0,93511.0,0.1114]
[1745513934924,0.2006932,93512.0,93511.0,0.1114]
[1745513935127,0.3726932,93512.0,93511.0,0.1114]
[1745513936323,0.3726932,93512.0,93511.0,0.0954]
[1745513937628,0.3726932,93512.0,93511.0,0.1004]
[1745513939339,0.1068989,93507.0,93496.0,0.3608]
[1745513939638,0.1068989,93507.0,93497.0,0.0464]
[1745513940230,0.3746989,93507.0,93497.0,0.0464]
[1745513940632,0.3746989,93507.0,93506.0,0.00706944]
[1745513940933,0.3766989,93507.0,93506.0,0.00706944]
[1745513942135,0.3786989,93507.0,93506.0,0.00106944]
[1745513949142,0.7394989,93507.0,93506.0,0.00106944]
[1745513949950,0.106908,93499.0,93498.0,0.0487]
[1745513950138,0.175388,93499.0,93498.0,0.0987]
[1745513950946,0.271188,93499.0,93498.0,0.0987]
[1745513951141,0.443188,93499.0,93498.0,0.0987]
[1745513953636,0.443188,93499.0,93498.0,0.1966]
[1745513957640,0.1069218,93487.0,93486.0,0.0476]
[1745513957846,0.1069218,93487.0,93486.0,0.1776]
[1745513958653,0.1754018,93487.0,93486.0,0.1776]
[1745513958845,0.1754018,93487.0,93486.0,0.2875229]
[1745513959353,0.1754018,93487.0,93486.0,0.1806]
[1745513959656,0.1754018,93487.0,93486.0,0.1806]
[1745513960153,0.1754018,93487.0,93486.0,0.133]
[1745513961254,0.3474018,93487.0,93486.0,0.2299]
[1745513961443,0.3474018,93487.0,93486.0,0.2329]
[1745513963044,0.3474018,93487.0,93486.0,0.2429]
[1745513963448,0.3474018,93487.0,93486.0,0.146]
[1745513963754,0.3937018,93487.0,93486.0,0.146]
[1745513963956,0.3937018,93487.0,93486.0,0.1945]
[1745513964952,0.3937018,93487.0,93486.0,0.003]
[1745513965151,0.1069252,93484.0,93483.0,0.0945]
[1745513966254,0.2789252,93484.0,93483.0,0.0945]
[1745513967754,0.2789252,93484.0,93481.0,0.3608]
[1745513968052,0.0534651,93480.0,93479.0,0.0981]
[1745513968852,0.0534651,93480.0,93479.0,0.0496]
[1745513969350,0.2254651,93480.0,93479.0,0.0496]
[1745513969561,0.2939851,93480.0,93479.0,0.0496]
[1745513970360,0.2939851,93480.0,93479.0,0.0506]
[1745513970759,0.2939851,93480.0,93479.0,0.0516]
[1745513971149,0.24052,93480.0,93479.0,0.0516]
[1745513971354,0.24052,93480.0,93479.0,0.1585309]
[1745513971553,0.24052,93480.0,93479.0,0.0816]
[1745513971959,0.24052,93480.0,93479.0,0.2338309]
[1745513972161,0.1754498,93480.0,93479.0,0.1269]
[1745513972357,0.06852,93480.0,93479.0,0.1269]
[1745513972666,0.1754498,93480.0,93479.0,0.1269]
[1745513972851,0.1754498,93480.0,93479.0,0.1758]
[1745513973859,0.2208498,93480.0,93479.0,0.1269]
[1745513974052,0.2208498,93480.0,93479.0,0.0969]
[1745513974258,0.3928498,93480.0,93479.0,0.0969]
[1745513974455,0.3928498,93480.0,93479.0,0.0516]
[1745513974856,0.3928498,93480.0,93479.0,0.002]
[1745513977464,0.1069332,93477.0,93476.0,1e-08]
[1745513978055,0.2789332,93477.0,93476.0,1e-08]
[1745513978955,0.6397332,93477.0,93476.0,1e-08]
[1745513981056,0.7467132,93477.0,93476.0,1e-08]
[1745513981255,0.7487132,93477.0,93476.0,1e-08]
[1745513981969,0.1069549,93458.0,93457.0,0.3608]
[1745513982173,0.1754349,93458.0,93457.0,0.3608]
[1745513982673,0.18641496,93458.0,93457.0,0.3608]
[1745513982970,0.28031496,93458.0,93457.0,0.3608]
[1745513983176,0.45231496,93458.0,93453.0,0.16322893]
[1745513983362,0.1069813,93435.0,93434.0,0.04831694]
[1745513983569,0.8970613,93435.0,93434.0,0.04831694]
[1745513983869,0.8970613,93435.0,93425.0,0.04831694]
[1745513983870,0.1069916,93426.0,93425.0,0.04831694]
[1745513984068,0.4677916,93426.0,93425.0,0.04831694]
[1745513984270,0.5362716,93426.0,93425.0,0.04831694]
[1745513984470,0.5362716,93426.0,93425.0,0.05831694]
[1745513984665,0.4677916,93426.0,93425.0,0.05831694]
[1745513984860,0.5362716,93426.0,93425.0,0.05831694]
[1745513985073,0.7082716,93426.0,93425.0,0.06031694]
[1745513985769,0.7082716,93426.0,93425.0,0.05031694]
[1745513986767,0.8040716,93426.0,93425.0,0.05031694]
[1745513986966,0.8040716,93426.0,93425.0,0.05331694]
[1745513988575,0.8040716,93426.0,93425.0,0.005]
[1745513991165,0.8040716,93426.0,93425.0,0.003]
[1745514002981,0.8040716,93426.0,93418.0,0.0482]
[1745514002982,0.1069996,93419.0,93418.0,0.0482]
[1745514003182,0.4677996,93419.0,93418.0,0.0482]
[1745514003692,0.1070191,93402.0,93401.0,0.0458]
[1745514003979,0.8971391,93402.0,93401.0,0.0458]
[1745514004790,0.90771246,93402.0,93401.0,0.0458]
[1745514005277,1.07971246,93402.0,93401.0,0.0458]
[1745514005478,1.08771176,93402.0,93401.0,0.0458]
[1745514005881,1.08771176,93402.0,93401.0,0.0468]
[1745514006284,1.08771176,93402.0,93401.0,0.0478]
[1745514006786,1.08771176,93402.0,93401.0,0.0949]
[1745514007586,1.08771176,93402.0,93401.0,0.1049]
[1745514008281,0.91571176,93402.0,93401.0,0.1049]
[1745514008878,0.91571176,93402.0,93401.0,0.1509]
[1745514011191,0.84719176,93402.0,93401.0,0.1509]
[1745514011503,0.91567176,93402.0,93401.0,0.1509]
[1745514013200,0.91567176,93402.0,93401.0,0.012]
[1745514013401,0.91567176,93402.0,93386.0,0.00107082]
[1745514013402,1.14473666,93402.0,93386.0,0.00107082]
[1745514013592,0.1070615,93365.0,93351.0,0.0053561]
[1745514013796,0.1070707,93357.0,93351.0,0.0053561]
[1745514013995,0.4678707,93357.0,93352.0,0.0498]
[1745514014205,0.7469867,93357.0,93351.0,0.0053561]
[1745514014404,0.6398707,93357.0,93352.0,0.0498]
[1745514014604,0.61227591,93357.0,93356.0,0.02107116]
[1745514014799,0.7083507,93357.0,93356.0,0.02107116]
[1745514015899,0.7083507,93357.0,93356.0,0.02207116]
[1745514016301,0.7083507,93357.0,93356.0,0.02307116]
[1745514016897,0.4569,93357.0,93356.0,0.02307116]
[1745514017097,0.15919528,93380.0,93361.0,0.0535329]
[1745514017297,0.06848,93377.0,93374.0,0.3608]
[1745514017497,0.1070489,93376.0,93375.0,0.0957]
[1745514017698,0.1070489,93376.0,93375.0,0.2457]
[1745514017898,0.1070489,93376.0,93375.0,0.24543]
[1745514018301,0.1070489,93376.0,93375.0,0.41743]
[1745514018704,0.1110489,93376.0,93375.0,0.41743]
[1745514019301,0.004,93376.0,93375.0,0.41743]
[1745514019596,0.1150489,93376.0,93375.0,0.41743]
[1745514019996,0.1150489,93376.0,93375.0,0.41843]
[1745514020204,0.1150489,93376.0,93375.0,0.46693]
[1745514021101,0.1150489,93376.0,93375.0,0.29493]
[1745514022698,0.1150489,93376.0,93375.0,0.25493]
[1745514023096,0.1150489,93376.0,93375.0,0.20643]
[1745514023495,0.1620489,93376.0,93375.0,0.20643]
[1745514023704,0.1620489,93376.0,93375.0,0.09643]
[1745514024205,0.3340489,93376.0,93375.0,0.09643]
[1745514029311,0.2870489,93376.0,93375.0,0.09643]
[1745514029708,0.18,93376.0,93375.0,0.10643]
[1745514029908,0.2870489,93376.0,93375.0,0.13643]
[1745514030113,0.18,93376.0,93375.0,0.13643]
[1745514030315,0.1150489,93376.0,93375.0,0.13643]
[1745514031419,0.00029,93383.0,93375.0,0.453526]
[1745514031617,0.1073308,93383.0,93382.0,0.3608]
[1745514031812,0.1073308,93383.0,93382.0,0.4408]
[1745514032217,0.1073308,93383.0,93382.0,0.6592]
[1745514032407,0.1073308,93383.0,93382.0,0.2984]
[1745514032820,0.1130408,93383.0,93382.0,0.2984]
[1745514033213,0.1130408,93383.0,93382.0,0.1264]
[1745514033409,0.1130408,93383.0,93382.0,0.0964]
[1745514033614,0.1170408,93383.0,93382.0,0.0464]
[1745514033813,0.2021408,93383.0,93382.0,0.0464]
[1745514034220,0.3731408,93383.0,93382.0,0.0474]
[1745514037019,0.3731408,93383.0,93382.0,0.0574]
[1745514037209,0.7339408,93383.0,93382.0,0.0574]
[1745514040713,0.10705,93375.0,93374.0,0.3608]
[1745514041020,0.10705,93375.0,93374.0,0.4608]
[1745514041921,0.11005,93375.0,93374.0,0.4608]
[1745514043124,0.11205,93375.0,93374.0,0.4608]
[1745514050832,0.11205,93375.0,93374.0,0.1]
[1745514051030,0.1070569,93369.0,93368.0,0.045]
[1745514051234,0.1070569,93369.0,93368.0,0.1683]
[1745514051530,0.0535278,93371.0,93351.0,0.0053561]
[1745514051531,0.1070707,93357.0,93351.0,0.0053561]
[1745514051728,0.1755507,93357.0,93356.0,0.01107116]
[1745514052321,0.5363507,93357.0,93356.0,0.01107116]
[1745514052925,0.5828507,93357.0,93356.0,0.01307116]
[1745514053133,0.59378927,93357.0,93356.0,0.01307116]
[1745514053331,0.5828507,93357.0,93356.0,0.01307116]
[1745514053631,0.5828507,93357.0,93356.0,0.00307116]
[1745514054232,0.7548507,93357.0,93356.0,0.00200006]
[1745514055027,0.7548507,93357.0,93356.0,6e-08]
[1745514055540,0.1070741,93354.0,93353.0,0.0429]
[1745514055734,0.1070741,93354.0,93353.0,0.0861]
[1745514056833,0.1070741,93354.0,93353.0,0.0429]
[1745514057234,0.0535407,93348.0,93320.0,0.00785564]
[1745514057434,0.1070993,93332.0,93331.0,0.1268]
[1745514057736,0.1070993,93332.0,93331.0,0.2668]
[1745514059136,0.1070993,93332.0,93331.0,0.2678]
[1745514059539,0.10685105,93332.0,93331.0,0.2678]
[1745514060025,0.0535379,93353.0,93331.0,0.37494399]
[1745514060225,0.3608,93366.0,93345.0,0.7216]
[1745514060423,0.1070707,93357.0,93356.0,0.3608]
[1745514060628,0.1070695,93358.0,93357.0,0.0404]
[1745514060829,0.1070695,93358.0,93357.0,0.2229]
[1745514061029,0.06852,93367.0,93357.0,0.33001599]
[1745514061332,0.1070672,93360.0,93359.0,0.3608]
[1745514061639,0.1070695,93358.0,93357.0,0.2549]
[1745514061836,0.1070695,93358.0,93357.0,0.3449]
[1745514062231,0.1070695,93358.0,93357.0,0.1739]
[1745514063035,0.1120695,93358.0,93357.0,0.1749]
[1745514063535,0.1550695,93358.0,93357.0,0.1749]
[1745514063937,0.1600695,93358.0,93357.0,0.1749]
[1745514065127,0.5208695,93358.0,93357.0,0.1749]
[1745514065336,0.5208695,93358.0,93357.0,0.0849]
[1745514065538,0.1170695,93358.0,93357.0,0.0849]
[1745514065838,0.1170695,93358.0,93357.0,0.1049]
[1745514066042,0.01,93358.0,93357.0,0.69281599]
[1745514066233,0.01,93358.0,93357.0,0.97188669]
[1745514066536,0.1170695,93358.0,93357.0,0.86481599]
[1745514069242,0.01,93358.0,93357.0,0.97188669]
[1745514069540,0.1170695,93358.0,93357.0,0.97188669]
[1745514070843,0.1070629,93368.0,93367.0,0.0535288]
[1745514071044,0.1070629,93368.0,93367.0,0.6814328]
[1745514071244,0.1070629,93368.0,93367.0,0.627904]
[1745514072132,0.1140629,93368.0,93367.0,0.800904]
[1745514072943,0.1140629,93368.0,93367.0,0.9079632]
[1745514073243,0.0535257,93374.0,93367.0,0.9079632]
[1745514073244,0.0535257,93374.0,93373.0,0.1070523]
[1745514073433,0.0441,93389.0,93373.0,0.17]
[1745514073741,0.1070408,93383.0,93382.0,0.3608]
[1745514073944,0.1070408,93383.0,93382.0,0.5008]
[1745514074243,0.1070408,93383.0,93382.0,0.607888]
[1745514076437,0.1090408,93383.0,93382.0,0.607888]
[1745514077047,0.1080408,93383.0,93382.0,0.607888]
[1745514078143,0.1080408,93383.0,93382.0,0.5008]
[1745514079044,0.1090408,93383.0,93382.0,0.5008]
[1745514079544,0.1090408,93383.0,93382.0,0.4008]
[1745514079743,0.1090408,93383.0,93382.0,0.3608]
[1745514079947,0.1070454,93379.0,93378.0,0.0844]
[1745514080841,0.1479454,93379.0,93378.0,0.0844]
[1745514082750,0.1479454,93379.0,93378.0,0.0416]
[1745514085053,0.1479454,93379.0,93378.0,0.0516]
[1745514085851,0.1479454,93379.0,93378.0,0.01]
[1745514089054,0.0409,93379.0,93378.0,0.01]
[1745514089252,0.0409,93379.0,93378.0,0.2170466]
[1745514089450,0.06848,93395.0,93386.0,0.1070374]
[1745514089647,0.0052,93400.0,93386.0,0.1070374]
[1745514089648,0.0535175,93389.0,93386.0,0.6278374]
[1745514089949,0.0408,93393.0,93392.0,0.1070305]
[1745514090256,0.0052,93400.0,93393.0,0.1070285]
[1745514090448,0.1070294,93394.0,93393.0,0.2037]
[1745514090952,0.1070294,93394.0,93393.0,0.31077199]
[1745514091150,0.1070294,93394.0,93393.0,0.2037]
[1745514092553,0.1100294,93394.0,93393.0,0.2037]
[1745514092954,0.1130294,93394.0,93393.0,0.2037]
[1745514093347,0.1539294,93394.0,93393.0,0.16]
[1745514093858,0.1946294,93394.0,93393.0,0.16]
[1745514094255,0.0535148,93393.0,93381.0,0.3608]
[1745514094445,0.107042,93382.0,93381.0,0.5108]
[1745514095249,0.363342,93382.0,93381.0,0.5108]
[1745514095453,0.320342,93382.0,93381.0,0.5108]
[1745514096255,0.148342,93382.0,93381.0,0.5108]
[1745514098052,0.053524,93377.0,93363.0,0.3608]
[1745514098354,0.1070626,93364.0,93363.0,0.5417]
[1745514099753,0.1070626,93364.0,93363.0,0.5427]
[1745514100155,0.1070626,93364.0,93363.0,0.111]
[1745514100657,0.1070626,93364.0,93363.0,0.112]
[1745514101053,0.1070626,93364.0,93363.0,0.111]
[1745514101353,0.2790626,93364.0,93363.0,0.111]
[1745514101658,0.2790626,93364.0,93363.0,0.119]
[1745514103757,0.2790626,93364.0,93363.0,0.118]
[1745514104159,0.2790626,93364.0,93363.0,0.128]
[1745514104460,0.2790626,93364.0,93363.0,0.146]
[1745514106258,0.1070626,93364.0,93363.0,0.146]
[1745514119059,0.2790626,93364.0,93363.0,0.006]
[1745514119373,0.3217626,93364.0,93363.0,0.006]
[1745514119566,0.4078626,93364.0,93363.0,0.006]
[1745514122758,0.3236626,93364.0,93363.0,0.016]
[1745514123154,0.1516626,93364.0,93363.0,0.016]
[1745514125961,0.1070626,93364.0,93363.0,0.016]
[1745514133377,0.1509626,93364.0,93363.0,0.016]
[1745514133678,0.1966626,93364.0,93363.0,0.016]
[1745514134960,0.1966626,93364.0,93363.0,0.006]
[1745514135160,0.3686626,93364.0,93363.0,0.006]
[1745514136272,0.3247626,93364.0,93363.0,0.006]
[1745514136572,0.3247626,93364.0,93363.0,0.016]
[1745514137172,0.0457,93364.0,93363.0,0.016]
[1745514137370,0.1070626,93364.0,93363.0,0.156]
[1745514137976,0.0429,93369.0,93368.0,0.107058]
[1745514138272,0.0429,93369.0,93368.0,0.627858]
[1745514138273,0.1070573,93369.0,93368.0,0.627858]
[1745514138476,0.1070573,93369.0,93368.0,0.5208]
[1745514138867,0.0535278,93371.0,93368.0,0.6525]
[1745514139177,0.1070536,93372.0,93371.0,0.1070535]
[1745514139476,0.1070536,93372.0,93371.0,0.2370535]
[1745514139662,0.1070489,93376.0,93375.0,0.0535243]
[1745514139863,0.1070476,93378.0,93377.0,0.1070477]
[1745514140075,0.1070476,93378.0,93377.0,0.16]
[1745514140465,0.1070476,93378.0,93377.0,0.2670477]
[1745514140669,0.1070476,93378.0,93377.0,0.16]
[1745514141273,0.1070476,93378.0,93377.0,0.2670477]
[1745514142174,0.1070476,93378.0,93377.0,0.16]
[1745514147081,0.0535193,93385.0,93384.0,0.1070397]
[1745514147382,0.1070386,93385.0,93384.0,0.5178387]
[1745514147587,0.1070386,93385.0,93384.0,0.4108]
[1745514148173,0.1090386,93385.0,93384.0,0.4108]
[1745514148580,0.1110386,93385.0,93384.0,0.5178397]
[1745514148885,0.004,93385.0,93384.0,0.5178397]
[1745514149079,0.1110386,93385.0,93384.0,0.6898397]
[1745514150198,0.1110386,93385.0,93384.0,0.5178397]
[1745514150393,0.1110386,93385.0,93384.0,0.4108]
[1745514151197,0.1997386,93385.0,93384.0,0.4108]
[1745514151394,0.1997386,93385.0,93384.0,0.5178397]
[1745514151698,0.1565386,93385.0,93384.0,0.5178397]
[1745514152998,0.1110386,93385.0,93384.0,0.5178397]
[1745514154796,0.1110386,93385.0,93384.0,0.4108]
[1745514155701,0.1110386,93385.0,93384.0,0.5645397]
[1745514159201,0.004,93385.0,93384.0,0.5645397]
[1745514159405,0.0535049,93411.0,93384.0,0.5645397]
[1745514159406,0.1755059,93396.0,93395.0,0.1070271]
[1745514159603,0.06848,93396.0,93395.0,0.4678271]
[1745514159799,0.1512225,93399.0,93398.0,0.1070237]
[1745514160103,0.1512225,93399.0,93398.0,0.2570237]
[1745514160905,0.1512225,93399.0,93398.0,0.3053237]
[1745514161806,0.1542225,93399.0,93398.0,0.3053237]
[1745514162509,0.1572225,93399.0,93398.0,0.1983]
[1745514162814,0.2026225,93399.0,93398.0,0.1983]
[1745514168107,0.2026225,93399.0,93398.0,0.15]
[1745514169097,0.3746225,93399.0,93398.0,0.15]
[1745514171407,0.1070305,93392.0,93391.0,0.00028]
[1745514171607,0.1070305,93392.0,93391.0,0.08028]
[1745514171806,0.1070305,93392.0,93391.0,0.08]
[1745514172317,0.3688305,93392.0,93391.0,0.08]
[1745514172617,0.3708305,93392.0,93391.0,0.08]
[1745514174214,0.3728305,93392.0,93391.0,0.08]
[1745514184423,0.3728305,93392.0,93391.0,0.1255]
[1745514185023,0.176,93392.0,93391.0,0.2325317]
[1745514185316,0.1754637,93398.0,93397.0,0.1070248]
[1745514185521,0.1754637,93398.0,93397.0,0.2670248]
[1745514186308,0.1754637,93398.0,93397.0,0.3624248]
[1745514186518,0.1784637,93398.0,93397.0,0.3624248]
[1745514187120,0.1804637,93398.0,93397.0,0.2554]
[1745514187711,0.2705637,93398.0,93397.0,0.16]
[1745514188511,0.2255637,93398.0,93397.0,0.16]
[1745514188719,0.1804637,93398.0,93397.0,0.2670248]
[1745514188911,0.3524637,93398.0,93397.0,0.2670248]
[1745514189427,0.3524637,93398.0,93397.0,0.16]
[1745514189617,0.3524637,93398.0,93397.0,0.2670248]
[1745514190117,0.1804637,93398.0,93397.0,0.2670248]
[1745514191127,0.1120237,93398.0,93397.0,0.2670248]
[1745514192420,0.005,93398.0,93397.0,0.2670248]
[1745514192626,0.1120237,93398.0,93397.0,0.2670248]
[1745514192811,0.005,93398.0,93397.0,0.2670248]
[1745514193011,0.005,93398.0,93397.0,0.3740928]
[1745514193217,0.10182271,93399.0,93398.0,0.1070225]
[1745514193418,0.10182271,93399.0,93398.0,0.3523225]
[1745514194425,1e-08,93400.0,93399.0,0.1070225]
[1745514194616,1e-08,93400.0,93399.0,0.3577225]
[1745514195328,0.10702141,93400.0,93399.0,0.3577225]
[1745514195827,0.1616089,93417.0,93416.0,0.107003]
[1745514196127,0.1616089,93417.0,93416.0,0.607803]
[1745514196527,0.1616089,93417.0,93416.0,0.698503]
[1745514197529,0.1616089,93417.0,93416.0,0.699503]
[1745514199127,0.0011,93417.0,93416.0,0.699503]
[1745514199629,0.1604873,93430.0,93417.0,0.0535008]
[1745514199832,0.2139824,93430.0,93429.0,0.467787]
[1745514200030,0.2583824,93430.0,93429.0,0.537787]
[1745514200626,0.2583824,93430.0,93429.0,0.629487]
[1745514200932,0.2623824,93430.0,93429.0,0.629487]
[1745514201232,0.2643824,93430.0,93429.0,0.629487]
[1745514201429,0.2643824,93430.0,93429.0,0.5225]
[1745514201934,0.3089824,93430.0,93429.0,0.5225]
[1745514202135,0.4809824,93430.0,93429.0,0.4773]
[1745514202322,0.4769824,93430.0,93429.0,0.4773]
[1745514202519,0.4809824,93430.0,93429.0,0.4773]
[1745514203233,0.4809824,93430.0,93429.0,0.4308]
[1745514203530,0.4809824,93430.0,93429.0,0.07]
[1745514203936,0.106995,93423.0,93422.0,0.0439]
[1745514204132,0.106995,93423.0,93422.0,0.1839]
[1745514204834,0.196295,93423.0,93422.0,0.1839]
[1745514205238,0.369295,93423.0,93422.0,0.1839]
[1745514205532,0.371295,93423.0,93422.0,0.1839]
[1745514205834,0.371295,93423.0,93422.0,0.2908962]
[1745514206025,0.175,93423.0,93422.0,0.2908962]
[1745514206224,0.003,93423.0,93422.0,0.2908962]
[1745514206731,0.109995,93423.0,93422.0,0.2908962]
[1745514207737,0.109995,93423.0,93422.0,0.1839]
[1745514207928,0.109995,93423.0,93422.0,0.2908962]
[1745514208435,0.108995,93423.0,93422.0,0.2908962]
[1745514208633,0.002,93423.0,93422.0,0.2918962]
[1745514208840,0.1604819,93432.0,93431.0,0.1069847]
[1745514209029,0.1604819,93432.0,93431.0,0.6077847]
[1745514209231,0.2081819,93432.0,93431.0,0.5008]
[1745514209540,0.2081819,93432.0,93431.0,0.5928]
[1745514209934,0.2101819,93432.0,93431.0,0.5928]
[1745514210135,0.3821819,93432.0,93431.0,0.5928]
[1745514211137,0.4300819,93432.0,93431.0,0.5928]
[1745514213337,0.4300819,93432.0,93431.0,0.5008]
[1745514214244,0.43811873,93432.0,93431.0,0.5008]
[1745514215849,0.3831819,93432.0,93431.0,0.6077859]
[1745514216144,0.3831819,93432.0,93431.0,0.5008]
[1745514216746,0.4299819,93432.0,93431.0,0.5477]
[1745514217244,0.4299819,93432.0,93431.0,0.5008]
[1745514220542,0.4299819,93432.0,93431.0,0.5459]
[1745514220847,0.4299819,93432.0,93431.0,0.1851]
[1745514224051,0.4299819,93432.0,93431.0,0.2299]
[1745514226548,0.4299819,93432.0,93431.0,0.14]
[1745514227048,0.4299819,93432.0,93431.0,0.1868]
[1745514227639,0.4299819,93432.0,93431.0,0.2341]
[1745514229842,0.3831819,93432.0,93431.0,0.2341]
[1745514230044,0.2227,93432.0,93431.0,0.3410859]
[1745514230247,0.175,93432.0,93431.0,0.3410859]
[1745514230845,0.2819847,93432.0,93431.0,0.3410859]
[1745514231151,0.1099847,93432.0,93431.0,0.3410859]
[1745514231450,0.1099847,93432.0,93431.0,0.2341]
[1745514231954,0.2044847,93432.0,93431.0,0.2341]
[1745514232150,0.3764847,93432.0,93431.0,0.2341]
[1745514233251,0.3764847,93432.0,93431.0,0.3410859]
[1745514233849,0.3764847,93432.0,93431.0,0.2341]
[1745514234656,0.3764847,93432.0,93431.0,0.3410859]
[1745514237056,0.3764847,93432.0,93431.0,0.2341]
[1745514237747,0.3764847,93432.0,93431.0,0.3410859]
[1745514237948,0.3764847,93432.0,93431.0,0.2341]
[1745514238547,0.3764847,93432.0,93431.0,0.3410859]
[1745514238951,0.3764847,93432.0,93431.0,0.2341]
[1745514240556,0.3764847,93432.0,93431.0,0.14]
[1745514240749,0.1069859,93431.0,93430.0,0.3608]
[1745514240952,0.1069881,93429.0,93428.0,0.00028]
[1745514241455,0.1070053,93414.0,93413.0,0.1304]
[1745514241645,0.1070053,93414.0,93413.0,0.2704]
[1745514242150,0.2790053,93414.0,93413.0,0.2704]
[1745514242352,0.3234053,93414.0,93413.0,0.2704]
[1745514242854,0.3686053,93414.0,93413.0,0.2704]
[1745514243057,0.3686053,93414.0,93413.0,0.2734]
[1745514243456,0.3686053,93414.0,93413.0,0.103]
[1745514243956,0.3686053,93414.0,93413.0,0.106]
[1745514244557,0.3686053,93414.0,93413.0,0.105]
[1745514244853,0.3686053,93414.0,93413.0,0.104]
[1745514245055,0.3686053,93414.0,93413.0,0.1479]
[1745514245256,0.3234053,93414.0,93413.0,0.1479]
[1745514245560,0.3234053,93414.0,93413.0,0.2549065]
[1745514245561,0.2790053,93414.0,93413.0,0.2549065]
[1745514248955,0.172,93414.0,93413.0,0.2549065]
[1745514249262,0.1070053,93415.0,93414.0,0.107003]
[1745514249454,0.1070053,93415.0,93414.0,0.356303]
[1745514250361,0.1070053,93415.0,93414.0,0.358303]
[1745514251273,0.1070053,93415.0,93414.0,0.359303]
[1745514252162,0.1503053,93415.0,93414.0,0.359303]
[1745514252971,0.1070053,93415.0,93414.0,0.359303]
[1745514255271,0.0459,93426.0,93420.0,0.053499]
[1745514255465,0.1069919,93426.0,93425.0,0.4677927]